[Event "Cairns Cup 2024"]
[Site "Saint Louis"]
[Date "2024.06.14"]
[Round "2.1"]
[White "Tan, Zhongyi"]
[Black "Krush, Irina"]
[Result "1/2-1/2"]
[ECO "B43"]
[WhiteElo "2540"]
[BlackElo "2415"]
[Annotator "TA"]
[PlyCount "90"]
[EventDate "2024.06.13"]
[EventType "tourn"]
[EventCountry "USA"]
[SourceTitle "playchess.com"]
[Source "ChessBase"]
[SourceQuality "1"]
[TimeControl "40/5400+30:1800+30"]

{[%evp 15,90,22,27,31,40,12,8,-5,22,20,24,0,-14,-8,-10,-50,-41,-54,-68,-60,-59,-56,-41,-49,-51,-78,-69,-129,-135,-132,-90,-128,-54,-51,-66,-64,-53,-60,-57,-59,-51,-49,-65,-86,-88,-118,-110,-118,-72,-101,-75,-95,-54,-54,0,0,0,0,0,0,0,0,0,0,0,0,0,0,0,0,0,0,0,0,0,0,0]} 1. e4 {[%emt 0:00:00]} c5 {[%emt 0:00:00]} 2. Nc3 {[%emt 0:00:00]} e6 {[%emt 0:00:00]} 3. Nf3 {[%emt 0:00:00]} a6 {[%emt 0:00:00]} 4. d4 {[%emt 0:00:00]} cxd4 {[%emt 0:00:00]} 5. Nxd4 {[%emt 0:00:00]} b5 {[%emt 0:00:00]} 6. Bd3 {[%emt 0:00:00]} Bb7 {[%emt 0:00:00]} 7. O-O {[%emt 0:00:00]} Nc6 {[%emt 0:00:00]} 8. Nxc6 {[%emt 0:00:00]} Bxc6 {[%emt 0:00:00]} 9. Re1 {[%emt 0:00:00]} Ne7 {[%emt 0:00:00]} 10. Qh5 {[%emt 0:00:00]} Ng6 {[%emt 0:00:00]} 11. a4 {[%emt 0:00:00]} bxa4 {[%emt 0:00:00]} 12. Nxa4 {[%emt 0:00:00]} Bd6 {[%emt 0:00:00]} 13. Nc3 {[%emt 0:00:00]} Be5 {[%emt 0:09:54]} 14. Ne2 {[%emt 0:06:23]} O-O {[%emt 0:01:34]} 15. f4 {[%emt 0:07:53]} Qb6+ {[%emt 0:05:27]} 16. Kh1 {[%emt 0:06:52]} Qf2 $1 {[%emt 0:01:38]} (16... Bxb2 $2 17. Rb1 $18) 17. Bd2 {[%emt 0:01:51]} Bxb2 {[%emt 0:03:52]} (17... Nxf4 $2 18. Nxf4 Bxf4 19. Re2 $18) 18. Rab1 {[%emt 0:00:05][%cal Oe1f1] [#] And now Rf1! would win.} Rab8 {[%emt 0:13:17][%cal Of7f5]} 19. Rf1 $1 {[%emt 0:07:52]} Qh4 {[%emt 0:01:11]} 20. Qc5 {[%emt 0:05:09][%cal Od2e1]} Qe7 {[%emt 0:04:41]} 21. Qf2 {[%emt 0:00:30] [#]} (21. Be3 $15) 21... f5 $1 $17 {[%emt 0:03:22]} 22. Ng3 {[%emt 0:09:14]} Nh4 {[%emt 0:03:02]} 23. Rfe1 {[%emt 0:02:18]} Qa3 {[%emt 0:10:17]} (23... Be5 $17 24. Rxb8 (24. fxe5 $2 {is the wrong capture.} Rxb1 25. Bxa6 fxe4 $19) 24... Bxb8) 24. Nxf5 $15 {[%emt 0:08:05]} exf5 {[%emt 0:15:07]} 25. Qxh4 {[%emt 0:00:09]} fxe4 {[%emt 0:00:06]} 26. Bxe4 {[%emt 0:00:25]} Bxe4 {[%emt 0:00:25]} 27. Rxe4 {[%emt 0:00:11]} Qc5 {[%emt 0:08:55][%cal Od7d5] Against Qh5} 28. Qe1 {[%emt 0:20:45] Black must now prevent Bb4.} Qxc2 {[%emt 0:05:13][%cal Oa6a5]} 29. h3 {[%emt 0:00:35]} h6 {[%emt 0:02:36][%cal Oa6a5]} 30. Rd1 {[%emt 0:03:51]} d5 {[%emt 0:01:01]} 31. Re6 {[%emt 0:02:01]} Rf6 {[%emt 0:04:07]} ({Black should try} 31... Kh7 {[%cal Ob8e8]} 32. Rxa6 Rfe8) 32. Re7 {[%emt 0:03:30]} Bd4 {[%emt 0:03:43]} 33. Rc1 {[%emt 0:07:42]} Qd3 {[%emt 0:01:16]} 34. Bc3 {[%emt 0:00:06]} Rc8 {[%emt 0:05:57]} ({Reject} 34... Rxf4 35. Bxd4 Qxd4 36. Rcc7 $11) (34... Bxc3 $15 35. Rxc3 Qf5) 35. Bxd4 $11 {[%emt 0:06:16] The position is equal.} Rxc1 {[%emt 0:00:02]} 36. Re8+ {[%emt 0:02:56]} Rf8 {[%emt 0:01:08]} 37. Rxf8+ {[%emt 0:00:15]} Kxf8 {[%emt 0:00:02]} 38. Bxg7+ {[%emt 0:01:05]} Kxg7 {[%emt 0:00:05]} 39. Qxc1 {[%emt 0:00:02][%mdl 4096] Endgame. KQ-KQ} d4 {[%emt 0:01:29]} 40. Qc7+ {[%emt 0:00:18]} Kg8 {[%emt 0:00:23]} 41. Qd8+ {[%emt 0:30:33]} Kg7 {[%emt 0:30:18]} 42. Qd7+ {[%emt 0:00:05]} Kg8 {[%emt 0:00:11]} 43. Qd8+ {[%emt 0:00:44]} Kg7 {[%emt 0:00:14]} 44. Qd7+ {[%emt 0:00:03]} Kg8 {[%emt 0:00:05]} 45. Qd8+ {[%emt 0:00:03]} Kg7 {[%emt 0:00:06] Weighted Error Value: White=0.12 (very precise) /Black=0.11 (very precise) .  Mistake:       	White=1     	Black=3      Inaccurate:     	White=6     	Black=3      OK:         	White=11    	Black=15     Best:        	White=1     	Black=2      Strong:       	White=1     	Black=2} 1/2-1/2

[Event "Cairns Cup 2024"]
[Site "Saint Louis"]
[Date "2024.06.14"]
[Round "2.2"]
[White "Muzychuk, Anna"]
[Black "Muzychuk, Mariya"]
[Result "1/2-1/2"]
[ECO "B12"]
[WhiteElo "2505"]
[BlackElo "2510"]
[Annotator "TA"]
[PlyCount "38"]
[EventDate "2024.06.13"]
[EventType "tourn"]
[EventCountry "USA"]
[SourceTitle "playchess.com"]
[Source "ChessBase"]
[SourceQuality "1"]
[TimeControl "40/5400+30:1800+30"]

{[%evp 9,38,0,16,0,18,-11,40,22,34,25,24,16,49,36,52,37,42,37,43,23,24,0,31,0,0,0,15,0,0,0,78]} 1. e4 {[%emt 0:00:00]} c6 {[%emt 0:00:00]} 2. d4 {[%emt 0:00:00]} d5 {[%emt 0:00:00]} 3. e5 {[%emt 0:00:00]} c5 {[%emt 0:00:00]} 4. dxc5 {[%emt 0:00:00]} e6 {[%emt 0:00:00]} 5. a3 {[%emt 0:00:00]} Bxc5 {[%emt 0:00:00][%cal Bf8c5,Bc5b6,Bb6f2][%mdl 32]} 6. Qg4 {[%emt 0:00:00]} Ne7 {[%emt 0:00:00]} 7. Nf3 {[%emt 0:00:00][%cal Ob2b4] [#] aiming for b4!} O-O {[%emt 0:00:00]} ({Black should try} 7... Qb6 $11) 8. b4 {[%emt 0:00:00] White is slightly better.} Bb6 {[%emt 0:00:00]} 9. Bd3 {[%emt 0:00:00][%cal Od3h7] Threatens to win with Bxh7+!} Ng6 {[%emt 0:00:00]} 10. Bb2 {[%emt 0:00:00]} f5 {[%emt 0:00:00]} (10... Nd7 {simplifies} 11. Bxg6 fxg6 12. c4 Rf5) 11. exf6 {[%emt 0:00:00]} e5 $1 {[%emt 0:00:00][%cal Be6e5,Be5e4][%mdl 32]} 12. Qh5 {[%emt 0:00:00]} e4 {[%emt 0:00:00]} 13. Ng5 {[%emt 0:00:00][%csl Gg5][%cal Rh5h7] [#]} (13. fxg7 $2 Rf5 (13... exf3 $2 14. gxf8=Q+ Qxf8 15. Qxd5+ Qf7 16. Bc4 $18) 14. Qh6 exd3 $19 (14... exf3 $2 15. gxf3 Nc6 16. Rg1 $19)) 13... Bxf2+ {[%emt 0:00:00]} 14. Kd1 {[%emt 0:00:00][%csl Gg5][%cal Rh5h7] Chess con chili.} Rxf6 {[%emt 0:00:00]} 15. Qxh7+ {[%emt 0:00:00]} (15. Bxf6 Qxf6 16. Qxh7+ Kf8 $17) 15... Kf8 {[%emt 0:00:00]} 16. Qh5 {[%emt 0:00:00]} (16. Bxf6 $2 Qxf6 17. Qh5 Ke7 $19 (17... Qxa1 $2 18. Qxg6 Ke7 19. Qf7+ Kd6 20. Qxf2 $18)) (16. Be2 $5) 16... Kg8 {[%emt 0:00:00] The position is equal.} 17. Qh7+ {[%emt 0:00:00]} (17. Bxf6 Qxf6 18. Rf1 exd3 (18... Qxa1 19. Qh7+ Kf8 20. Rxf2+) 19. cxd3 Nf8 $17 (19... Qxa1 20. Qh7+ Kf8 21. Rxf2+)) 17... Kf8 {[%emt 0:00:00]} 18. Qh5 {[%emt 0:00:00]} (18. Bxf6 $2 Qxf6 19. Qh5 Ke7 $19 (19... Qxa1 $2 20. Qxg6 Ke7 21. Qf7+ Kd6 22. Qxf2 $18)) ({Better is} 18. Be2 $11) 18... Kg8 $16 {[%emt 0:00:00]} 19. Qh7+ {[%emt 0:00:00]} ({Of course not} 19. Bxf6 Qxf6 20. Rf1 exd3 (20... Qxa1 21. Qh7+ Kf8 22. Rxf2+) 21. cxd3 Nf8 $17 (21... Qxa1 22. Qh7+ Kf8 23. Rxf2+)) 19... Kf8 {[%emt 0:00:00] Weighted Error Value: White=0.06 (flawless) /Black=0.09 (flawless) .  Mistake:       	White=1     	Black=1      Inaccurate:     	---       	Black=3      OK:         	White=6     	Black=7      Best:        	White=4     	Black=1      Strong:       	---       	Black=1} 1/2-1/2

[Event "Cairns Cup 2024"]
[Site "Saint Louis"]
[Date "2024.06.14"]
[Round "2.3"]
[White "Dzagnidze, Nana"]
[Black "Zatonskih, Anna"]
[Result "1-0"]
[ECO "A13"]
[WhiteElo "2506"]
[BlackElo "2327"]
[Annotator "TA"]
[PlyCount "129"]
[EventDate "2024.06.13"]
[EventType "tourn"]
[EventCountry "USA"]
[SourceTitle "playchess.com"]
[Source "ChessBase"]
[SourceQuality "1"]
[TimeControl "40/5400+30:1800+30"]

{[%evp 11,129,3,11,3,10,0,0,0,-3,-12,-8,-2,0,0,0,-4,0,-33,0,0,0,0,0,0,0,0,8,9,8,8,17,0,13,29,241,241,222,214,218,211,209,220,253,253,245,225,275,266,275,275,1320,1392,1278,1286,1397,1360,1342,1300,1300,1220,1185,1107,1025,998,29943,29950,29951,29951,29968,29968,29968,29969,29965,29969,29970,29971,29972,29973,29974,29973,29974,29975,29974,29975,29975,29974,29978,29979,29979,29976,29979,29980,29982,29983,29983,29978,29978,29979,29980,29981,29981,29982,29982,29983,29983,29983,29983,29981,29981,29977,29982,29983,29983,29984,29984,29985,29985,29985,29986,220]} 1. c4 {[%emt 0:00:00]} e6 {[%emt 0:00:00]} 2. Nf3 {[%emt 0:00:00]} d5 {[%emt 0:00:00]} 3. e3 {[%emt 0:00:00]} Nf6 {[%emt 0:00:00]} 4. b3 {[%emt 0:00:00]} Be7 {[%emt 0:00:00]} 5. Bb2 {[%emt 0:00:00]} O-O {[%emt 0:00:00]} 6. d4 {[%emt 0:00:00]} c5 {[%emt 0:11:59] A13: English Opening: 1...e6.} 7. Nbd2 {[%emt 0:00:00] 7.dxc5 is becoming the main line.} cxd4 {[%emt 0:04:59]} 8. Nxd4 {[%emt 0:00:00]} Nc6 {[%emt 0:01:12]} 9. Nxc6 {[%emt 0:00:00]} bxc6 {[%emt 0:00:24]} 10. Be2 {[%emt 0:00:00]} Bd6 {[%emt 0:02:14]} 11. O-O {[%emt 0:00:00]} e5 {[%emt 0:01:10]} 12. Qc2 $146 {[%emt 0:00:00]} ({Predecessor:} 12. Rc1 Qe7 13. h3 Bf5 14. cxd5 cxd5 15. Bb5 Rfd8 16. Qe2 h6 17. Rfd1 Rac8 18. Bd3 {½-½ Pintonello,G (2016)-Kudryavtsev,Y (2002) LSS BI-2009-F-00010 2010}) 12... Qe7 {[%emt 0:04:03]} 13. Rfd1 {[%emt 0:01:21]} a5 {[%emt 0:05:34]} 14. Nf1 {[%emt 0:05:32]} a4 {[%emt 0:20:03]} 15. bxa4 {[%emt 0:23:35]} Bd7 {[%emt 0:03:48]} 16. cxd5 {[%emt 0:12:47]} cxd5 {[%emt 0:02:02]} 17. Bb5 {[%emt 0:00:04]} Rfb8 {[%emt 0:03:12]} 18. Ng3 {[%emt 0:01:48]} Bxb5 {[%emt 0:09:58]} 19. axb5 {[%emt 0:00:05]} Rxb5 {[%emt 0:00:04]} 20. Nf5 {[%emt 0:08:22]} Qc7 {[%emt 0:02:33]} 21. Rdc1 {[%emt 0:01:37]} Qb8 {[%emt 0:08:13]} 22. Rab1 {[%emt 0:08:35]} Bf8 $2 {[%emt 0:01:08]} (22... Rxa2 $2 {is the wrong capture.} 23. Nxd6 Qxd6 24. Qc8+ Qf8 25. Ba3 (25. Bxe5 Rxb1 26. Qxf8+ Kxf8 $16) (25. Qxf8+ Kxf8 $16) 25... Rxa3 26. Rxb5 $18) (22... Rc5 $1 $11 {and Black stays safe.} 23. Bc3 Qf8) 23. Bxe5 $1 $18 {[%emt 0:02:23]} Qb6 {[%emt 0:04:12]} 24. Rxb5 {[%emt 0:05:35]} Qxb5 {[%emt 0:00:34]} 25. Nh6+ {[%emt 0:02:45]} gxh6 {[%emt 0:01:22]} 26. Bxf6 {[%emt 0:00:03]} Bg7 {[%emt 0:02:45]} 27. Bxg7 {[%emt 0:03:32]} Kxg7 {[%emt 0:00:01]} 28. h3 {[%emt 0:00:20]} d4 {[%emt 0:04:35]} 29. exd4 {[%emt 0:01:50]} Qd5 {[%emt 0:00:02]} 30. Qc5 {[%emt 0:01:37]} Qxa2 $2 {[%emt 0:00:22]} (30... Ra5) 31. Qe5+ $18 {[%emt 0:03:13]} Kg8 {[%emt 0:00:24]} 32. d5 {[%emt 0:01:33]} Rd8 {[%emt 0:00:56]} 33. Rc3 {[%emt 0:03:30]} Qxd5 {[%emt 0:00:24]} 34. Rg3+ {[%emt 0:00:08]} Kf8 {[%emt 0:00:03]} 35. Qh8+ {[%emt 0:01:03]} Ke7 {[%emt 0:00:02]} 36. Re3+ {[%emt 0:02:23]} (36. Qxh7 Qd1+ 37. Kh2 Qd6 $14) 36... Kd7 {[%emt 0:00:53]} 37. Qxh7 {[%emt 0:00:32]} Qd1+ {[%emt 0:04:33]} 38. Kh2 {[%emt 0:00:14]} Qd6+ {[%emt 0:00:01]} 39. g3 {[%emt 0:00:27]} Qg6 {[%emt 0:00:11]} 40. Qxg6 {[%emt 0:00:25]} fxg6 {[%emt 0:00:02]} 41. Rd3+ {[%emt 0:30:07]} Ke7 {[%emt 0:30:03]} 42. Rxd8 {[%emt 0:00:06]} Kxd8 {[%emt 0:00:02]} 43. Kg2 {[%emt 0:00:17]} Ke7 {[%emt 0:00:01]} 44. Kf3 {[%emt 0:00:08]} Kf6 {[%emt 0:00:11]} 45. Kf4 {[%emt 0:00:28]} Ke6 {[%emt 0:03:16]} 46. Ke4 {[%emt 0:00:28]} Kd6 {[%emt 0:00:08]} 47. h4 {[%emt 0:00:55]} Ke6 {[%emt 0:00:29]} 48. g4 {[%emt 0:00:15]} Kd6 {[%emt 0:00:50]} 49. f4 {[%emt 0:02:16]} Ke6 {[%emt 0:00:52]} 50. Kd4 {[%emt 0:01:32]} Kf6 {[%emt 0:04:06]} 51. Kd5 {[%emt 0:00:11]} Kf7 {[%emt 0:00:26]} 52. Ke5 {[%emt 0:00:09]} Ke7 {[%emt 0:00:08]} 53. g5 {[%emt 0:03:30]} h5 {[%emt 0:00:53]} 54. f5 {[%emt 0:00:09]} Kf7 {[%emt 0:00:29]} 55. fxg6+ {[%emt 0:00:25]} Kg7 {[%emt 0:01:20]} 56. Kd6 {[%emt 0:04:52]} Kf8 {[%emt 0:00:32]} 57. g7+ {[%emt 0:00:33]} Kf7 {[%emt 0:00:42]} 58. Kd7 {[%emt 0:01:18]} Kg8 {[%emt 0:00:26]} 59. Kd8 {[%emt 0:00:32]} Kf7 {[%emt 0:00:20]} 60. g8=Q+ {[%emt 0:00:24]} Kxg8 {[%emt 0:00:02]} 61. Ke8 {[%emt 0:00:07]} Kg7 {[%emt 0:00:06]} 62. Ke7 {[%emt 0:00:04]} Kg6 {[%emt 0:00:22]} 63. Kf8 {[%emt 0:00:08]} Kh7 {[%emt 0:00:06]} 64. Kf7 {[%emt 0:00:05]} Kh8 {[%emt 0:00:06]} 65. Kg6 {[%emt 0:00:12]} 1-0

[Event "Cairns Cup 2024"]
[Site "Saint Louis"]
[Date "2024.06.14"]
[Round "2.4"]
[White "Paehtz, Elisabeth"]
[Black "Lee, Alice"]
[Result "1/2-1/2"]
[ECO "A09"]
[WhiteElo "2457"]
[BlackElo "2368"]
[Annotator "RC"]
[PlyCount "102"]
[EventDate "2024.06.13"]
[EventType "tourn"]
[EventCountry "USA"]
[SourceTitle "playchess.com"]
[Source "ChessBase"]
[SourceQuality "1"]
[TimeControl "40/5400+30:1800+30"]

1. Nf3 {[%emt 0:00:00]} d5 {[%emt 0:00:00]} 2. g3 {[%emt 0:00:00]} g6 {[%emt 0:00:00]} 3. c4 {[%emt 0:00:00]} dxc4 {[%emt 0:00:00]} 4. Qa4+ {[%emt 0:00:00]} Nd7 {[%emt 0:00:00]} 5. Qxc4 {[%emt 0:00:00]} Bg7 {[%emt 0:00:00]} 6. Bg2 {[%emt 0:00:00]} Ngf6 {[%emt 0:00:00]} 7. O-O {[%emt 0:00:00]} O-O {[%emt 0:00:00]} 8. d3 {[%emt 0:00:00]} e5 {[%emt 0:00:00]} 9. Nc3 {[%emt 0:00:00]} Nb6 {[%emt 0:00:00]} 10. Qc5 {[%emt 0:00:00]} Re8 {[%emt 0:00:00]} 11. Nxe5 {[%emt 0:11:49]} Bf8 {[%emt 0:04:02]} 12. Qa5 {[%emt 0:00:11]} c6 {[%emt 0:15:27]} 13. Nf3 {[%emt 0:00:16]} Bf5 {[%emt 0:05:49]} 14. e4 {[%emt 0:14:55]} Bg4 {[%emt 0:10:20]} 15. Rd1 {[%emt 0:04:06]} Nfd7 {[%emt 0:07:38]} 16. d4 {[%emt 0:21:08]} c5 {[%emt 0:08:51]} 17. dxc5 {[%emt 0:07:57]} Bxc5 {[%emt 0:01:09]} 18. Bg5 {[%emt 0:00:30]} f6 {[%emt 0:05:06]} 19. Bf4 {[%emt 0:00:33]} Qe7 {[%emt 0:01:18]} 20. Nd5 {[%emt 0:12:15]} Nxd5 {[%emt 0:02:57]} 21. Rxd5 {[%emt 0:00:04]} Rac8 {[%emt 0:08:31]} 22. h3 {[%emt 0:09:51]} Be6 {[%emt 0:01:41]} 23. Rdd1 {[%emt 0:00:15]} Nb6 {[%emt 0:04:05]} 24. Qe1 {[%emt 0:01:15]} Bf7 {[%emt 0:08:22]} 25. e5 {[%emt 0:01:41]} Nc4 {[%emt 0:01:14]} 26. b3 {[%emt 0:04:24]} Nxe5 {[%emt 0:02:53]} 27. Nxe5 {[%emt 0:00:04]} fxe5 {[%emt 0:00:04]} 28. Be3 {[%emt 0:00:10]} b6 {[%emt 0:04:23]} 29. Qe2 {[%emt 0:02:04]} Qf6 {[%emt 0:05:50]} 30. Be4 {[%emt 0:01:19]} Bd4 {[%emt 0:00:24]} 31. Rac1 {[%emt 0:00:13]} Be6 {[%emt 0:01:24]} 32. h4 {[%emt 0:00:20]} Bf7 {[%emt 0:01:22]} 33. Qd3 {[%emt 0:01:18]} Rcd8 {[%emt 0:00:44]} 34. Qe2 {[%emt 0:02:55]} Bxe3 {[%emt 0:00:12]} 35. Qxe3 {[%emt 0:00:05]} Rd4 {[%emt 0:00:02]} 36. Re1 {[%emt 0:00:48]} Qd6 {[%emt 0:01:11]} 37. h5 {[%emt 0:02:00]} Qf6 {[%emt 0:02:47]} 38. Rc6 {[%emt 0:02:15]} Rd6 {[%emt 0:00:12]} 39. Rec1 {[%emt 0:00:59]} Red8 {[%emt 0:00:48]} 40. h6 {[%emt 0:01:20]} Kf8 {[%emt 0:00:31]} 41. Rc7 {[%emt 0:31:21]} g5 {[%emt 0:30:02]} 42. Rxa7 {[%emt 0:00:28]} Qxh6 {[%emt 0:00:17]} 43. Bf3 {[%emt 0:00:43]} Qf6 {[%emt 0:01:20]} 44. Re1 {[%emt 0:01:18]} Rd3 {[%emt 0:00:05]} 45. Rxf7+ {[%emt 0:01:25]} Qxf7 {[%emt 0:01:03]} 46. Qxg5 {[%emt 0:00:05]} Qxf3 {[%emt 0:00:11]} 47. Qxe5 {[%emt 0:00:59]} Qf7 {[%emt 0:01:11]} 48. Qh8+ {[%emt 0:00:06]} Qg8 {[%emt 0:00:03]} 49. Qf6+ {[%emt 0:00:10]} Qf7 {[%emt 0:00:03]} 50. Qh8+ {[%emt 0:00:04]} Qg8 {[%emt 0:00:03]} 51. Qf6+ {[%emt 0:00:04]} Qf7 {[%emt 0:00:02]} 1/2-1/2

[Event "Cairns Cup 2024"]
[Site "Saint Louis"]
[Date "2024.06.14"]
[Round "2.5"]
[White "Dronavalli, Harika"]
[Black "Kosteniuk, Alexandra"]
[Result "1-0"]
[ECO "A34"]
[WhiteElo "2489"]
[BlackElo "2501"]
[Annotator "TA"]
[PlyCount "115"]
[EventDate "2024.06.13"]
[EventType "tourn"]
[EventCountry "USA"]
[SourceTitle "playchess.com"]
[Source "ChessBase"]
[SourceQuality "1"]
[TimeControl "40/5400+30:1800+30"]

{[%evp 40,115,141,130,131,136,135,132,136,145,133,140,131,135,145,160,186,171,209,213,240,229,322,282,307,280,372,366,384,375,822,809,695,642,1385,1206,1344,1237,875,847,1625,1491,4471,2247,3951,2317,4614,5188,5716,5551,29964,29965,29970,29971,29965,29968,29969,29972,29978,29979,29979,29979,29982,29983,29983,29984,29985,29972,29986,29987,29987,29979,29978,29980,29980,29981,29980,29981]} 1. Nf3 {[%emt 0:00:00]} d5 {[%emt 0:00:00]} 2. e3 {[%emt 0:00:00]} Nf6 {[%emt 0:00:00]} 3. c4 {[%emt 0:00:00]} c5 {[%emt 0:00:00]} 4. cxd5 {[%emt 0:00:00]} Nxd5 {[%emt 0:00:00]} 5. Nc3 {[%emt 0:00:00]} Nc6 {[%emt 0:00:00]} 6. Bb5 {[%emt 0:00:00]} Ndb4 {[%emt 0:00:00] A34: Symmetrical English: 2 Nc3, lines with ...d5.} 7. a3 {[%emt 0:02:29]} Nd3+ {[%emt 0:00:00]} 8. Ke2 {[%emt 0:00:18]} Nxc1+ {[%emt 0:00:00]} 9. Rxc1 {[%emt 0:01:30]} Bd7 {[%emt 0:00:00]} 10. d4 {[%emt 0:11:04]} cxd4 {[%emt 0:09:22]} 11. Bxc6 $146 {[%emt 0:06:13]} ({Predecessor:} 11. Nxd4 Rc8 12. Nxc6 Bxc6 13. Qxd8+ Kxd8 14. Rhd1+ Ke8 15. Bxc6+ Rxc6 16. Nb5 Rxc1 17. Rxc1 {0-1 Zimina,O (2415)-Colls Gelaberto,E (2093) EU-ch rapid Katowice 2017 (6)}) 11... Bxc6 {[%emt 0:06:57]} 12. Nxd4 {[%emt 0:05:16]} Qb6 {[%emt 0:01:58]} 13. Nxc6 {[%emt 0:03:41]} bxc6 {[%emt 0:00:54]} 14. Qa4 {[%emt 0:03:57]} Rd8 {[%emt 0:11:01]} 15. b4 {[%emt 0:13:09]} e6 {[%emt 0:20:41]} 16. Ne4 {[%emt 0:01:53]} Rc8 {[%emt 0:04:56]} 17. Nd2 {[%emt 0:13:01]} a6 {[%emt 0:15:38]} 18. Nc4 {[%emt 0:06:20]} Qb5 {[%emt 0:00:06]} 19. Qxb5 {[%emt 0:00:09]} axb5 {[%emt 0:00:02]} 20. Ne5 {[%emt 0:00:17]} Bd6 {[%emt 0:04:22]} 21. Nxc6 {[%emt 0:00:37]} Kd7 {[%emt 0:00:07]} 22. Nd4 {[%emt 0:00:17]} Rxc1 {[%emt 0:00:21]} 23. Rxc1 {[%emt 0:00:06]} Rb8 {[%emt 0:00:04]} 24. f4 {[%emt 0:01:31]} g6 {[%emt 0:01:04]} 25. Kd3 {[%emt 0:04:07]} Rb6 {[%emt 0:02:06]} 26. Nf3 {[%emt 0:03:52]} f6 {[%emt 0:02:32]} 27. g4 {[%emt 0:00:26]} Ra6 {[%emt 0:01:05]} 28. Rc3 {[%emt 0:00:06]} h6 {[%emt 0:02:52]} 29. h4 {[%emt 0:01:01]} h5 {[%emt 0:00:45]} 30. g5 {[%emt 0:02:26]} fxg5 {[%emt 0:05:26]} (30... Ke7 $142 31. Kd4 Kf7 32. gxf6 Kxf6) 31. fxg5 {[%emt 0:04:14]} (31. Nxg5 e5 $16) 31... Bg3 {[%emt 0:03:14]} 32. Ke4 {[%emt 0:00:41]} Kd6 {[%emt 0:00:08]} 33. Rd3+ {[%emt 0:09:18]} Ke7 {[%emt 0:00:10]} 34. Ne5 {[%emt 0:00:38]} Bxe5 $2 {[%emt 0:00:12]} (34... Kf8 35. Nxg6+ Kg7) 35. Kxe5 $18 {[%emt 0:00:03]} Rc6 {[%emt 0:00:08]} 36. e4 {[%emt 0:00:15]} Ra6 {[%emt 0:03:59]} 37. Rf3 {[%emt 0:00:20]} Ra8 {[%emt 0:00:03]} 38. Rc3 {[%emt 0:01:02]} Ra7 {[%emt 0:00:22]} 39. Rc5 {[%emt 0:00:14]} Rxa3 {[%emt 0:00:12]} 40. Rxb5 {[%emt 0:00:05]} Rh3 {[%emt 0:00:05]} 41. Rb7+ {[%emt 0:30:05]} Kd8 {[%emt 0:30:06]} 42. Kxe6 {[%emt 0:02:35]} Rxh4 {[%emt 0:00:05]} 43. e5 {[%emt 0:01:56]} Kc8 {[%emt 0:05:11]} 44. Rh7 {[%emt 0:00:54]} Rxb4 {[%emt 0:03:07]} 45. Kf6 {[%emt 0:00:04]} Rf4+ {[%emt 0:00:34]} 46. Kxg6 {[%emt 0:00:06]} h4 {[%emt 0:00:03]} 47. e6 {[%emt 0:00:35]} Kd8 {[%emt 0:00:04]} 48. Rf7 {[%emt 0:00:59]} Re4 {[%emt 0:01:02]} 49. Kf5 {[%emt 0:01:23]} Re1 {[%emt 0:00:04]} 50. g6 {[%emt 0:03:56]} Rf1+ {[%emt 0:00:03]} 51. Kg5 {[%emt 0:00:05]} Rg1+ {[%emt 0:00:05]} 52. Kf6 {[%emt 0:00:12]} (52. Kxh4 Rxg6 53. Rh7 Rxe6 $11) 52... h3 {[%emt 0:00:33]} 53. Rf8+ {[%emt 0:00:08]} Kc7 {[%emt 0:00:03]} 54. e7 {[%emt 0:01:00]} h2 {[%emt 0:00:11]} 55. Rh8 {[%emt 0:01:36]} (55. e8=B h1=Q (55... h1=R 56. Bf7 $14) 56. Kg7 Qe4 57. Rf7+ Kd8 (57... Kb8 58. Rf8 Kc7 59. Rf7+ Kd8 60. Rf8 Qd4+ 61. Kg8 Ke7 62. Bf7 Rh1 63. g7 Rg1 64. Bg6 Rxg6 65. Rf7+ Ke6 66. Rc7 Rg5 67. Rf7 Rg1 68. Kh7 Kxf7 69. g8=B+ Rxg8 70. Kh6 Qh8#) 58. Rf8 Qd4+ 59. Kg8 Ke7 (59... Qa1 60. Bc6+ Ke7 61. Be4 Qa2+ 62. Kg7 Qb2+ 63. Kg8 Qb3+ 64. Kg7 Qc3+ 65. Kg8 Qc4+ 66. Kg7 Qd4+ 67. Kg8 Qxe4 68. Rf7+ Ke6 69. Kf8 Qh4 70. Kg8 Rxg6+ 71. Rg7 Kf6 72. Rxg6+ Kxg6 73. Kf8 Qd8#) 60. Bf7 Rh1 (60... Kf6 61. Be8+ Kg5 62. Rf7 Qe5 63. Rf3 Qd5+ 64. Rf7 Kxg6 65. Kf8 Qc5+ 66. Kg8 Kh6+ 67. Rg7 Rxg7+ 68. Kh8 Qf8#) 61. g7 Rg1) 55... Rf1+ {[%emt 0:00:39]} 56. Kg7 {[%emt 0:00:09]} Re1 {[%emt 0:00:08]} 57. Rxh2 {[%emt 0:00:09]} ({Not} 57. e8=B h1=Q 58. Rxh1 Rxh1 $11) 57... Rxe7+ {[%emt 0:00:05]} 58. Kf6 {[%emt 0:00:07]} 1-0